Workbook

Sheet Feuil1
D1: Compta Janvier 2019
E2: Débit | F2: Crédit | G2: Solde | H2: CB-Attent | I2: Espèc | J2: Prélèv | K2: Chèques | L2: Réel | M2: DatRegl | N2: Num Jr | O2: Débits | P2: Crédits
A3: Date Op. | B3: DatRégl. | C3: Rub | D3: Libellé | E3: =SUM(E7:E102) -> 9307.87 | F3: =SUM(F7:F102) -> 6792.8 | G3: =F3-E3 -> -2515.07 | H3: =SUM(H5:H100) -> 1187.13 | I3: =SUM(I4:I200) -> 145.23 | J3: =SUM(J4:J200) -> 31.07 | K3: =SUM(K4:K200) -> 5777.6 | L3: =G3-H3-K3 -> -9479.8 | N3: 41000 | O3: =SUM(O4:O150) -> 9307.87 | P3: =SUM(P4:P150) -> 9307.87
A4: 2019-01-16 | B4: 2019-01-17 | D4: Correction Banque | F4: =IF(F4=0,"",F4) -> 0 | L4: = | M4: 43482 | N4: 43482 | O4: =IF(M4>40000,E4," ") -> 0 | P4: =IF(N4>40000,F4," ") -> 0 | R4: 138.48 | U4: =IF(4=4,"") -> 
A5: 2018-12-24 | C5: 91 | D5: Reprise CB | F5: 0 | H5: 41.5 | O5: =IF(N5>40000,E5," ") ->  | P5: =IF(N5>40000,F5," ") ->  | R5: 15 | U5: =IF(4=4,"") -> 
A6: 2018-12-27 | C6: 91 | D6: Reprise CB | F6: 0 | H6: 159.97 | R6: =R3+R4+R5 -> 153.48
A7: 2019-01-01 | B7: 2019-01-01 | C7: 100 | D7: ENIM | F7: 60.85 | G7: =F7-E7 -> 60.85 | M7: 43466 | N7: 43466 | O7: 0 | P7: 60.85
A8: 2019-01-01 | B8: 2019-01-01 | C8: 100 | D8: CAFAT | F8: 106.98 | G8: 106.98 | M8: 43466 | N8: 43466 | O8: 0 | P8: 106.98
A9: 2019-01-01 | B9: 2019-01-01 | C9: 100 | D9: CARSAT J | F9: 460.89 | G9: 460.89 | M9: 43466 | N9: 43466 | O9: 0 | P9: 460.89
A10: 2019-01-01 | B10: 2019-01-01 | C10: 100 | D10: CARSAT RJ | F10: 284.88 | G10: 284.88 | M10: 43466 | N10: 43466 | O10: 0 | P10: 284.88
A11: 2019-01-01 | B11: 2019-01-01 | C11: 100 | D11: CMSA | F11: 760.6 | G11: 760.6 | M11: 43466 | N11: 43466 | O11: 0 | P11: 760.6
A12: 2019-01-01 | B12: 2019-01-01 | C12: 100 | D12: IRCANTEC | F12: 108.95 | G12: 108.95 | M12: 43466 | N12: 43466 | O12: 0 | P12: 108.95
A13: 2019-01-01 | B13: 2019-01-01 | C13: 100 | D13: CRCCA | F13: 1754.21 | G13: 1754.21 | M13: 43466 | N13: 43466 | O13: 0 | P13: 1754.21
A14: 2019-01-01 | B14: 2019-01-01 | C14: 100 | D14: CAMARCA | F14: 732.51 | G14: 732.51 | M14: 43466 | N14: 43466 | O14: 0 | P14: 732.51
A15: 2019-01-01 | B15: 2019-01-01 | C15: 100 | D15: CCPMA | F15: 39.49 | G15: 39.49 | M15: 43466 | N15: 43466 | O15: 0 | P15: 39.49
A16: 2019-01-01 | B16: 2019-01-01 | C16: 100 | D16: PREFON | F16: 1668.8 | G16: 1668.8 | M16: 43466 | N16: 43466 | O16: 0 | P16: 1668.8
A17: 2019-01-01 | B17: 2019-01-01 | C17: 52 | D17: TH | E17: 152 | G17: -152 | J17: 152 | M17: 43466 | N17: 43466 | O17: 152 | P17: 0
A18: 2019-01-01 | B18: 2019-01-01 | C18: 52 | D18: TF | E18: 102 | G18: -102 | J18: 102 | M18: 43466 | N18: 43466 | O18: 102 | P18: 0
A19: 2019-01-01 | B19: 2019-01-01 | C19: 12 | D19: EDF | E19: 52.43 | G19: -52.43 | J19: 52.43 | M19: 43466 | N19: 43466 | O19: 52.43 | P19: 0
A20: 2019-01-01 | B20: 2019-01-01 | C20: 11 | D20: GDF | G20: 0 | M20: 43466 | N20: 43466 | O20: 0 | P20: 0
A21: 2019-01-01 | B21: 2019-01-01 | C21: 14 | D21: Internet & Portable EJ | E21: 59.99 | G21: -59.99 | J21: 59.99 | M21: 43466 | N21: 43466 | O21: 59.99 | P21: 0
A22: 2019-01-01 | B22: 2019-01-01 | C22: 14 | D22: Portable J | E22: 19.99 | G22: -19.99 | J22: 19.99 | M22: 43466 | N22: 43466 | O22: 19.99 | P22: 0
A23: 2019-01-01 | B23: 2019-01-01 | C23: 18 | D23: Service Accord Confiance | E23: 9 | G23: -9 | J23: 9 | M23: 43466 | N23: 43466 | O23: 9 | P23: 0
A24: 2019-01-01 | B24: 2019-01-01 | C24: 81 | D24: Ouest-France | E24: 27.25 | G24: -27.25 | J24: 27.25 | M24: 43466 | N24: 43466 | O24: 27.25 | P24: 0
A25: 2019-01-01 | B25: 2019-01-01 | C25: 62 | D25: Complémentaire Santé J | E25: 103.88 | G25: -103.88 | J25: 103.88 | M25: 43466 | N25: 43466 | O25: 103.88 | P25: 0
A26: 2019-01-01 | B26: 2019-01-01 | C26: 62 | D26: Complémentaire Santé J | E26: 90.44 | G26: -90.44 | J26: 90.44 | M26: 43466 | N26: 43466 | O26: 90.44 | P26: 0
A27: 2019-01-01 | B27: 2019-01-01 | C27: 71 | D27: Ass auto | E27: 17.03 | G27: -17.03 | J27: 17.03 | M27: 43466 | N27: 43466 | O27: 17.03 | P27: 0
A28: 2019-01-01 | B28: 2019-01-01 | C28: 61 | D28: Ass maison | E28: 37.06 | G28: -37.06 | J28: 37.06 | M28: 43466 | N28: 43466 | O28: 37.06 | P28: 0
A29: 2019-01-01 | B29: 2019-01-01 | C29: 22 | D29: Restaurant "Face à la Mer" | E29: 232.5 | G29: -232.5 | H29: 232.5 | M29: 43466 | N29: 43466 | O29: 232.5 | P29: 0
A30: 2019-01-01 | B30: 2019-01-01 | C30: 22 | D30: Pourboire "Face à la Mer" | E30: 20 | G30: -20 | I30: 20 | M30: 43466 | N30: 43466 | O30: 20 | P30: 0
A31: 2019-01-01 | B31: 2019-01-01 | C31: 18 | D31: Intérêts LDD RJ | E31: 23 | F31: 17.93 | G31: -5.07 | M31: 43466 | N31: 43466 | O31: 23 | P31: 17.93
A32: 2019-01-01 | B32: 2019-01-01 | C32: 18 | D32: Intérêts LDA RJ | F32: 23.2 | G32: 23.2 | M32: 43466 | N32: 43466 | O32: 0 | P32: 23.2
A33: 2019-01-01 | B33: 2019-01-01 | C33: 18 | D33: Intérêts LDD J | F33: 16.51 | G33: 16.51 | M33: 43466 | N33: 43466 | O33: 0 | P33: 16.51
A34: 2019-01-01 | B34: 2019-01-01 | C34: 18 | D34: Intérêts LDA J | F34: 69 | G34: 69 | M34: 43466 | N34: 43466 | O34: 0 | P34: 69
A35: 2019-01-03 | B35: 2019-01-03 | C35: 91 | D35: Retrait | G35: 0 | M35: 43468 | N35: 43468 | O35: 0 | P35: 0
A36: 2019-01-03 | B36: 2019-01-03 | C36: 23 | D36: Nourriture | G36: 0 | M36: 43468 | N36: 43468 | O36: 0 | P36: 0
A37: 2019-01-03 | B37: 2019-01-03 | C37: 36 | D37: Alinéa Minceur | G37: 0 | M37: 43468 | N37: 43468 | O37: 0 | P37: 0
A38: 2019-01-03 | B38: 2019-01-03 | C38: 15 | D38: Liquide vaisselle | G38: 0 | M38: 43468 | N38: 43468 | O38: 0 | P38: 0
A39: 2019-01-03 | B39: 2019-01-03 | C39: 36 | D39: Bains de bouche Vademecum | G39: 0 | M39: 43468 | N39: 43468 | O39: 0 | P39: 0
A40: 2019-01-03 | B40: 2019-01-03 | C40: 92 | D40: CB différées | E40: 80.32 | G40: -80.32 | H40: 80.32 | M40: 43468 | N40: 43468 | O40: 80.32 | P40: 0
A41: 2019-01-03 | B41: 2019-01-03 | C41: 81 | D41: Femme actuelle | G41: 0 | M41: 43468 | N41: 43468 | O41: 0 | P41: 0
A42: 2019-01-04 | B42: 2019-01-04 | C42: 15 | D42: GIFI Flutes champagne | E42: 5.9 | G42: -5.9 | I42: 5.9 | M42: 43469 | N42: 43469 | O42: 5.9 | P42: 0
A43: 2019-01-04 | B43: 2019-01-04 | C43: 81 | D43: 2 livres espace culturel Plérin | E43: 27.55 | G43: -27.55 | H43: 27.55 | M43: 43469 | N43: 43469 | O43: 27.55 | P43: 0
A44: 2019-01-04 | B44: 2019-01-04 | C44: 14 | D44: Atel HiTech Plérin Ac batterie | E44: 10 | G44: -10 | H44: 10 | M44: 43469 | N44: 43469 | O44: 10 | P44: 0
A45: 2019-01-04 | B45: 2019-01-04 | C45: 62 | D45: Sirop toux en Parapharmacie | E45: 6.65 | G45: -6.65 | H45: 6.65 | M45: 43469 | N45: 43469 | O45: 6.65 | P45: 0
A46: 2019-01-04 | B46: 2019-01-04 | C46: 87 | D46: Magasin Vert Raphel Cathaire | E46: 1701 | G46: -1701 | H46: 17.1 | M46: 43469 | N46: 43469 | O46: 1701 | P46: 0
A47: 2019-01-05 | B47: 2019-01-05 | C47: 87 | D47: Etrennes Julie | E47: 50 | G47: -50 | I47: 50 | M47: 43470 | N47: 43470 | O47: 50 | P47: 0
A48: 2019-01-08 | B48: 2019-01-08 | C48: 23 | D48: Galette | E48: 8.95 | G48: -8.95 | H48: 23.01 | M48: 43473 | N48: 43473 | O48: 8.95 | P48: 0
A49: 2019-01-08 | B49: 2019-01-08 | C49: 23 | D49: Brioche | E49: 2.95 | G49: -2.95 | M49: 43473 | N49: 43473 | O49: 2.95 | P49: 0
A50: 2019-01-08 | B50: 2019-01-08 | C50: 23 | D50: 1 pain | E50: 1.12 | G50: -1.12 | M50: 43473 | N50: 43473 | O50: 1.12 | P50: 0
A51: 2019-01-08 | B51: 2019-01-08 | C51: 15 | D51: Led 100w | E51: 9.99 | G51: -9.99 | M51: 43473 | N51: 43473 | O51: 9.99 | P51: 0
A52: 2019-01-09 | B52: 2019-01-09 | C52: 14 | D52: Solde batterie Smartphone | E52: 9.9 | G52: -9.9 | H52: 9.9 | M52: 43474 | N52: 43474 | O52: 9.9 | P52: 0
A53: 2019-01-09 | B53: 2019-01-09 | C53: 87 | D53: Fleurs URO | E53: 10 | G53: -10 | I53: 10 | M53: 43474 | N53: 43474 | O53: 10 | P53: 0
A54: 2019-01-09 | B54: 2019-01-09 | C54: 36 | D54: Pharmacie crème DERUBA | E54: 31.6 | G54: -31.6 | H54: 31.6 | M54: 43474 | N54: 43474 | O54: 31.6 | P54: 0
A55: 2019-01-09 | B55: 2019-01-09 | C55: 36 | D55: Savon Marseille | E55: 5.61 | G55: -5.61 | H55: 5.61 | M55: 43474 | N55: 43474 | O55: 5.61 | P55: 0
A56: 2019-01-09 | B56: 2019-01-09 | C56: 87 | D56: Carte Anniv AM | E56: 1.5 | G56: -1.5 | I56: 3.5 | M56: 43474 | N56: 43474 | O56: 1.5 | P56: 0
A57: 2019-01-10 | B57: 2019-01-10 | C57: 91 | D57: Retrait BQ => LDD RJ | G57: 0 | M57: 43475 | N57: 43475 | O57: 0 | P57: 0
A58: 2019-01-10 | B58: 2019-01-10 | C58: 91 | D58: Retrait BQ => LDD J | G58: 0 | M58: 43475 | N58: 43475 | O58: 0 | P58: 0
A59: 2019-01-10 | B59: 2019-01-10 | C59: 23 | D59: Pommes | E59: 8.13 | G59: -8.13 | I59: 8.13 | M59: 43475 | N59: 43475 | O59: 8.13 | P59: 0
A60: 2019-01-10 | B60: 2019-01-10 | C60: 23 | D60: 1 kg moules | E60: 3.8 | G60: -3.8 | I60: 3.8 | M60: 43475 | N60: 43475 | O60: 3.8 | P60: 0
A61: 2019-01-10 | B61: 2019-01-10 | C61: 88 | D61: 2 cot Club Plourhan Ch 7301 | E61: 32 | G61: -32 | K61: 32 | M61: 43475 | N61: 43475 | O61: 32 | P61: 0
A62: 2019-01-11 | B62: 2019-01-11 | C62: 15 | D62: Swiffer | E62: 7.04 | G62: -7.04 | M62: 43476 | N62: 43476 | O62: 7.04 | P62: 0
A63: 2019-01-11 | B63: 2019-01-11 | C63: 15 | D63: 3 Scotch Brite | E63: 1.4 | G63: -1.4 | M63: 43476 | N63: 43476 | O63: 1.4 | P63: 0
A64: 2019-01-11 | B64: 2019-01-11 | C64: 23 | D64: Faux filet + Hampe | E64: 13.8 | G64: -13.8 | H64: 13.8 | M64: 43476 | N64: 43476 | O64: 13.8 | P64: 0
A65: 2019-01-11 | B65: 2019-01-11 | C65: 23 | D65: Nourriture (Super U) | E65: 88.78 | G65: -88.78 | H65: 88.78 | M65: 43476 | N65: 43476 | O65: 88.78 | P65: 0
A66: 2019-01-12 | B66: 2019-01-12 | C66: 87 | D66: Fleurs Aigu & Lefondré | E66: 27.85 | G66: -27.85 | H66: 27.85 | M66: 43477 | N66: 43477 | O66: 27.85 | P66: 0
A67: 2019-01-14 | B67: 2019-01-14 | C67: 19 | D67: Réparation Micro J | E67: 135 | G67: -135 | H67: 135 | M67: 43479 | N67: 43479 | O67: 135 | P67: 0
A68: 2019-01-15 | B68: 2019-01-15 | C68: 19 | D68: Devis micro j Batterie Acompte | E68: 20 | G68: =F68-E68 -> -20 | H68: 20 | M68: 43480 | N68: 43480 | O68: 20 | P68: 0
A69: 2019-01-15 | B69: 2019-01-15 | C69: 62 | D69: Ail Noir fermenté RJ | E69: 15.95 | G69: -15.95 | H69: 15.95 | M69: 43480 | N69: 43480 | O69: =IF(N69>40000,E69," ") -> 15.95 | P69: =IF(N69>40000,F69," ") -> 0 | U69: =IF(4=4,"") -> 
A70: 2019-01-15 | B70: 2019-01-15 | C70: 86 | D70: Virement Impôts Remise dons | F70: 640 | G70: 640 | J70: -640 | M70: 43480 | N70: 43480 | O70: 0 | P70: 640
A71: 2019-01-16 | B71: 2019-01-16 | C71: 23 | D71: Baguette tradition | E71: 1.1 | G71: -1.1 | I71: 1.1 | M71: 43481 | N71: 43481 | O71: 1.1 | P71: 0
A72: 2019-01-17 | B72: 2019-01-17 | C72: 23 | D72: Alimentation | E72: 74.42 | G72: -74.42 | H72: 74.42 | M72: 43482 | N72: 43482 | O72: 74.42 | P72: 0
A73: 2019-01-17 | B73: 2019-01-17 | C73: 36 | D73: Dentifrice + solu dent | E73: 6.31 | G73: -6.31 | M73: 43482 | N73: 43482 | O73: 6.31 | P73: 0
A74: 2019-01-17 | B74: 2019-01-17 | C74: 88 | D74: Goûter Club | E74: 3 | G74: -3 | I74: 3 | M74: 43482 | N74: 43482 | O74: 3 | P74: 0
A75: 2019-01-17 | B75: 2019-01-17 | C75: 23 | D75: Moules | E75: 3.8 | G75: -3.8 | I75: 3.8 | M75: 43482 | N75: 43482 | O75: 3.8 | P75: 0
A76: 2019-01-17 | B76: 2019-01-17 | C76: 23 | D76: Pommes | E76: 6 | G76: -6 | I76: 6 | M76: 43482 | N76: 43482 | O76: 6 | P76: 0
A77: 2019-01-18 | B77: 2019-01-18 | C77: 62 | D77: Dentiste J | E77: 23 | G77: -23 | H77: 23 | M77: 43483 | N77: 43483 | O77: 23 | P77: 0
A78: 2019-01-18 | B78: 2019-01-18 | C78: 86 | D78: SDF | E78: 2 | G78: -2 | I78: 2 | M78: 43483 | N78: 43483 | O78: 2 | P78: 0
A79: 2019-01-19 | B79: 2019-01-19 | C79: 23 | D79: Alimentation | E79: 4.89 | G79: -4.89 | H79: 4.89 | M79: 43484 | N79: 43484 | O79: 4.89 | P79: 0
A80: 2019-01-20 | B80: 2019-01-20 | C80: 81 | D80: Films d'A Beurrier | F80: 8 | G80: 8 | I80: 8 | M80: 43485 | N80: 43485 | O80: 0 | P80: 8
A81: 2019-01-20 | B81: 2019-01-20 | C81: 81 | D81: Chocolat à l'Atelier | F81: 5 | G81: 5 | I81: 5 | M81: 43485 | N81: 43485 | O81: 0 | P81: 5
A82: 2019-01-23 | B82: 2019-01-21 | C82: 62 | D82: Remb Cpam j dentiste J | F82: 15.1 | G82: 15.1 | M82: 43486 | N82: 43486 | O82: 0 | P82: 15.1
A83: 2019-01-23 | B83: 2019-01-22 | C83: 17 | D83: Réparation gouttière Burlot | E83: 15 | G83: -15 | I83: 15 | M83: 43487 | N83: 43487 | O83: 15 | P83: 0
A84: 2019-01-23 | B84: 2019-01-23 | C84: 23 | D84: Pommes | E84: 7.6 | G84: -7.6 | M84: 43488 | N84: 43488 | O84: 7.6 | P84: 0
A85: 2019-01-24 | B85: 2019-01-24 | C85: 23 | D85: Moules | E85: 3.8 | G85: -3.8 | M85: 43489 | N85: 43489 | O85: 3.8 | P85: 0
A86: 2019-01-24 | B86: 2019-01-25 | C86: 62 | D86: Coalgan Pharmacie | E86: 3.2 | G86: -3.2 | M86: 43490 | N86: 43490 | O86: 3.2 | P86: 0
A87: 2019-01-24 | B87: 2019-01-26 | C87: 81 | D87: Femme actuelle jeux | E87: 4.6 | G87: -4.6 | M87: 43491 | N87: 43491 | O87: 4.6 | P87: 0
A88: 2019-01-24 | B88: 2019-01-27 | C88: 23 | D88: Réduction carte | G88: 0 | M88: 43492 | N88: 43492 | O88: 0 | P88: 0
A89: 2019-01-24 | B89: 2019-01-28 | C89: 23 | D89: Alimentation | E89: 90.88 | G89: -90.88 | H89: 137.73 | M89: 43493 | N89: 43493 | O89: 90.88 | P89: 0
A90: 2019-01-24 | B90: 2019-01-29 | C90: 88 | D90: Goûter Club | G90: 0 | M90: 43494 | N90: 43494 | O90: 0 | P90: 0
A91: 2019-01-24 | B91: 2019-01-30 | C91: 62 | D91: Dr Chailloux Rj Gastro Entéro | G91: 0 | M91: 43495 | N91: 43495 | O91: 0 | P91: 0
A92: 2019-01-31 | B92: 2019-01-31 | C92: 17 | D92: Solde Panneaux photo voltaiques | E92: 5745.6 | G92: -5745.6 | K92: 5745.6 | M92: 43496 | N92: 43496 | O92: 5745.6 | P92: 0
A93: 2019-01-25 | B93: 2019-01-25 | C93: 62 | D93: Remb Pacifica Dentiste J | F93: 6.9 | G93: 6.9 | M93: 43490 | N93: 43490 | O93: 0 | P93: 6.9
A94: 2019-01-25 | B94: 2019-01-25 | C94: 17 | D94: Raccordement réseau Enédis | E94: 49.31 | G94: -49.31 | K94: 49,31e | M94: 43490 | N94: 43490 | O94: 49.31 | P94: 0
A95: 2019-01-29 | B95: 2019-01-29 | C95: 62 | D95: Remb MSA RJ Dr Chailloux | F95: 13 | G95: 13 | M95: 43494 | N95: 43494 | O95: 0 | P95: 13
G96: 0
G97: 0
G98: 0
G99: 0
G100: 0
G101: 0
G102: 0
G103: 0
G104: 0
G105: 0
G106: 0
G107: 0
G108: 0
G109: 0
G110: 0
G111: 0
G112: 0
G113: 0
G114: 0
G115: 0
G116: 0
G117: 0
G118: 0
G119: 0
G120: 0
G121: 0
G122: 0
G123: 0
G124: 0
G125: 0
G126: 0
G127: 0
G128: 0
G129: 0
G130: 0
G131: 0
G132: =F132-E132 -> 0
G133: 0 | O133: =IF(N133>40000,E133," ") ->  | P133: =IF(N133>40000,F133," ") ->  | U133: =IF(4=4,"") -> 
G134: 0
G135: 0
G136: 0
G137: 0
G138: 0
G139: 0
G140: 0
G141: 0
G142: 0
G143: 0
G144: 0
G145: 0
G146: 0
G147: 0
G148: 0
G149: 0
G150: 0
